fUSD/lending_fUSD_20240702
["ID","MTS","AMOUNT","RATE_DAILY","PERIOD"]
[330865705,1719883839138,-23900.0,0.00020017,2]
[330865706,1719883839148,-250.0,0.00020017,2]
[330865707,1719883839158,-2782.0,0.000201,3]
[330865708,1719883839168,-171.02392005,0.00020433,2]
[330865709,1719883839179,-314.122,0.00020472,2]
[330865710,1719883839189,-5193.107,0.00020472,2]
[330865711,1719883839199,-1404.239,0.00020472,2]
[330865712,1719883839211,-1200.863,0.00020472,2]
[330865713,1719883839221,-38338.229,0.00020472,2]
[330865714,1719883839232,-543.35,0.00020547,3]
[330865715,1719883839243,-341.0,0.00020714,3]
[330865716,1719883839252,-682.0,0.00020749,3]
[330865717,1719883839262,-543.35,0.00020821,5]
[330865718,1719883839274,-171.02392005,0.00020925,2]
[330865719,1719883839283,-1250.0,0.00021,2]
[330865720,1719883839294,-543.35,0.00021095,7]
[330865721,1719883839304,-163.294868,0.00021161,2]
[330865722,1719883839314,-190.974127,0.00021161,2]
[330865723,1719883839325,-204.118583,0.00021161,2]
[330865724,1719883839335,-204.118585,0.00021161,2]
[330865725,1719883839345,-204.615136,0.00021161,2]
[330865726,1719883839355,-1000.0,0.000213,2]
[330865727,1719883839365,-543.35,0.00021369,9]
[330865728,1719883839375,-1000.0,0.00021381,2]
[330865729,1719883839386,-171.02392005,0.00021417,2]
[330865730,1719883839396,-1047.94614793,0.0002156,2]
[330865731,1719883839406,-543.35,0.00021643,11]
[330865732,1719883839415,-433.76,0.00021644,2]
[330865733,1719883839426,-528.26,0.00021671,2]
[330865734,1719883839436,-150.0,0.00021671,2]
[330865735,1719883839446,-354.72,0.00021671,2]
[330865736,1719883839456,-300.0,0.00021671,2]
[330865737,1719883839466,-164.8,0.00021671,2]
[330865738,1719883839477,-152.56,0.00021671,2]
[330865739,1719883839487,-150.0,0.00021671,2]
[330865740,1719883839498,-424.18,0.00021671,2]
[330865741,1719883839508,-150.0,0.00021671,2]
[330865742,1719883839517,-150.0,0.00021671,2]
[330865743,1719883839529,-150.0,0.00021671,2]
[330865744,1719883839539,-150.0,0.00021671,2]
[330865745,1719883839549,-150.0,0.00021671,2]
[330865746,1719883839559,-354.72,0.00021671,2]
[330865747,1719883839569,-150.0,0.00021671,2]
[330865748,1719883839580,-528.26,0.00021671,2]
[330865749,1719883839589,-424.18,0.00021671,2]
[330865750,1719883839599,-164.8,0.00021671,2]
[330865751,1719883839608,-150.0,0.00021671,2]
[330865752,1719883839618,-424.18,0.00021671,2]
[330865753,1719883839628,-528.26,0.00021671,2]
[330865754,1719883839638,-150.0,0.00021671,2]
[330865755,1719883839648,-150.0,0.00021671,2]
[330865756,1719883839658,-164.8,0.00021671,2]
[330865757,1719883839668,-150.0,0.00021671,2]
[330865758,1719883839678,-354.72,0.00021671,2]
[330865759,1719883839687,-150.0,0.00021671,2]
[330865760,1719883839697,-528.26,0.00021671,2]
[330865761,1719883839707,-150.0,0.00021671,2]
[330865762,1719883839716,-150.0,0.00021671,2]
[330865763,1719883839725,-150.0,0.00021671,2]
[330865764,1719883839736,-424.18,0.00021671,2]
[330865765,1719883839746,-164.8,0.00021671,2]
[330865766,1719883839757,-354.72,0.00021671,2]
[330865767,1719883839770,-150.0,0.00021671,2]
[330865768,1719883839782,-354.72,0.00021671,2]
[330865769,1719883839792,-424.18,0.00021671,2]
[330865770,1719883839802,-150.0,0.00021671,2]
[330865771,1719883839814,-150.0,0.00021671,2]
[330865772,1719883839825,-150.0,0.00021671,2]
[330865773,1719883839834,-528.26,0.00021671,2]
[330865774,1719883839844,-150.0,0.00021671,2]
[330865775,1719883839856,-164.8,0.00021671,2]
[330865776,1719883839866,-632.51,0.00021671,2]
[330865777,1719883839876,-150.0,0.00021671,2]
[330865778,1719883839885,-164.8,0.00021671,2]
[330865779,1719883839895,-422.8,0.00021671,2]
[330865780,1719883839904,-294.61,0.00021671,2]
[330865781,1719883839914,-150.0,0.00021671,2]
[330865782,1719883839923,-164.8,0.00021671,2]
[330865783,1719883839933,-150.0,0.00021671,2]
[330865784,1719883839943,-150.0,0.00021671,2]
[330865785,1719883839952,-163.05,0.00021671,2]
[330865786,1719883839962,-150.0,0.00021671,2]
[330865787,1719883839972,-150.0,0.00021671,2]
[330865788,1719883839982,-1000.0,0.000217,2]
[330865789,1719883839992,-190.974127,0.00021803,2]
[330865790,1719883840001,-693.84,0.00021882,2]
[330865791,1719883840010,-171.02392005,0.00021908,2]
[330865792,1719883840021,-543.35,0.00021917,13]
[330865793,1719883840030,-253.72,0.00021918,2]
[330865794,1719883840039,-178.63,0.00021918,2]
[330865795,1719883840049,-4279.14032286,0.00022,15]
[330865796,1719883840058,-1115.41783268,0.0002205,2]
[330865797,1719883840068,-150.38877789,0.00022137,5]
[330865798,1719883840078,-1522.0610836,0.00022142,2]
[330865799,1719883840088,-543.35,0.00022191,15]
[330865800,1719883840098,-220.24,0.00022192,3]
[330865801,1719883840107,-2500.0,0.000222,2]
[330865802,1719883840117,-217.25527492,0.000222,2]
[330865803,1719883840128,-328.03848419,0.00022211,120]
[330865804,1719883840138,-328.08836338,0.00022211,120]
[330865805,1719883840148,-219.52211462,0.0002228,2]
[330865806,1719883840158,-168.36923538,0.00022288,5]
[330865807,1719883840167,-82208.33681562,0.0002229,3]
[330865808,1719883840249,-40142.50519238,0.0002229,3]
[330865809,1719883840256,-167.81,0.0002229,2]
[330865810,1719883840266,-150.21360032,0.0002229,2]
[330865811,1719883840278,-321.6426,0.000223,2]
[330865812,1719883840288,-882.3549,0.000223,2]
[330865813,1719883840298,-500.0,0.000223,2]
[330865814,1719883840308,-197686.80702174,0.000223,2]
[330865815,1719883840320,-47313.19297826,0.000223,2]
[330865816,1719883840329,-10243.98051744,0.000223,2]
[330865817,1719883840409,-10000.0,0.0001939,2]
[330865818,1719883840419,-814.0,0.00021825,2]
[330865819,1719883840428,-814.0,0.0002205,2]
[330865820,1719883840439,-217.25527491,0.0002225,2]
[330865821,1719883840448,-814.0,0.00022275,2]
[330865822,1719883840458,-1046.04085896,0.000223,2]
[330865823,1719883840488,-1903.03082168,0.0001935,2]
[330865824,1719883840498,-38686.4560236,0.000223,2]
[330865825,1719883840508,-1000.0,0.000223,2]
[330865826,1719883840518,-3946.80135511,0.00022309,3]
[330865827,1719883840528,-500.0,0.00022318,2]
[330865828,1719883840538,-586.0,0.00022319,2]
[330865829,1719883840547,-500.0,0.00022319,2]
[330865830,1719883840557,-500.0,0.00022319,2]
[330865831,1719883840566,-500.0,0.00022319,2]
[330865832,1719883840575,-200.0,0.00022319,2]
[330865833,1719883840585,-219.52211462,0.00022335,2]
[330865834,1719883840594,-3946.80135511,0.0002237,3]
[330865835,1719883840604,-43414.8149062,0.0002238,3]
[330865836,1719883840614,-19092.8091367,0.0002238,3]
[330865837,1719883840623,-300.0,0.00022389,2]
[330865838,1719883840633,-31574.4108409,0.0002239,3]
[330865839,1719883840643,-21389.37073909,0.0002239,3]
[330865840,1719883841582,2939.50810681,0.00011199,2]
[330865841,1719883843192,-255.47534386,0.00017807,2]
[330865843,1719883843203,-1009.02342035,0.00017807,2]
[330865844,1719883843215,-450.83641036,0.00017807,2]
[330865845,1719883843227,-741.079999,0.00017807,2]
[330865846,1719883843238,-1642.8995,0.00017807,2]
[330865850,1719883843270,-247.51803792,0.00017807,2]
[330865852,1719883843286,-1253.1127764,0.00017807,2]
[330865854,1719883843295,-1267.20440174,0.0001939,2]
[330865856,1719883843305,-217.25527491,0.000223,2]
[330865857,1719883843319,-6294.40560669,0.0002239,3]
[330865858,1719883843331,-302.85004585,0.0002239,3]
[330865913,1719883846525,-217.25527491,0.0002235,2]
[330865915,1719883846537,-1336.61167006,0.0002239,3]
[330865917,1719883846549,-8862.38021161,0.0002239,3]
[330865919,1719883846562,-219.52211462,0.0002239,2]
[330865921,1719883846572,-7500.0,0.0002239,2]
[330865923,1719883846582,-1000.0,0.000224,2]
[330865924,1719883846591,-597.9696,0.000224,2]
[330865925,1719883846602,-7270.12797377,0.000224,2]
[330865926,1719883846615,-8400.0,0.000224,2]
[330865933,1719883976398,7914.437808,0.00011,2]
[330865948,1719884036313,4013.37810743,9e-05,2]
[330865958,1719884072676,2245.47560595,6.94e-05,2]
[330865959,1719884082599,5289.30481151,0.00010909,2]
[330865960,1719884083124,155.20938735,0.00010909,2]
[330865962,1719884093159,244.61276064,0.00010909,2]
[330865963,1719884097705,202.58126532,0.00010909,2]
[330865966,1719884158940,5639.02441994,0.00011199,2]
[330865968,1719884197160,4470.39192561,0.00011199,2]
[330865970,1719884216493,1497.99484713,0.00011199,2]
[330865972,1719884235461,1263.30462353,0.00011199,2]
[330865974,1719884252319,1295.24122718,0.00011199,2]
[330865976,1719884311662,150.5,0.0001499,30]
[330865977,1719884312121,150.5,0.0001498,30]
[330865978,1719884312577,150.5,0.0001497,30]
[330865979,1719884321870,661.02099471,0.00011199,2]
[330865980,1719884325299,155.24475811,0.00011199,2]
[330865981,1719884348980,158.59696677,0.00011199,2]
[330865982,1719884374020,235.74649008,0.00011199,2]
[330865983,1719884432142,150.5,0.0001499,30]
[330865984,1719884432593,157.9,0.0001498,30]
[330865995,1719884551275,150.5,0.0001499,30]
[330865997,1719884551749,150.5,0.0001498,30]
[330865998,1719884552463,150.5,0.0001497,30]
[330865999,1719884715888,658.09153811,0.00011199,2]
[330866000,1719884737395,163.98515363,0.00011199,2]
[330866002,1719884829831,895.93,0.00010841,2]
[330866022,1719885032295,-1524.10623217,0.00012273,2]
[330866024,1719885038277,-692.97003489,0.00012273,2]
[330866025,1719885038288,-155.0,0.00012302,2]
[330866026,1719885038298,-284.1062995,0.00012314,2]
[330866027,1719885038308,-235.86720928,0.00012314,2]
[330866028,1719885038318,-485.00132535,0.00012314,2]
[330866029,1719885038328,-200.0,0.00012701,2]
[330866030,1719885038338,-300.0,0.00012733,2]
[330866031,1719885038348,-23900.0,0.00012734,2]
[330866032,1719885038357,-160.55280855,0.00012804,2]
[330866033,1719885038366,-150.0,0.00012904,2]
[330866034,1719885038376,-250.0,0.00012938,2]
[330866035,1719885038385,-937.29,0.00012938,2]
[330866036,1719885038395,-500.86,0.00012941,2]
[330866037,1719885038405,-188.6,0.00012941,2]
[330866038,1719885038415,-244.27,0.00012943,2]
[330866039,1719885038424,-153.12,0.00013032,2]
[330866040,1719885038434,-153.12,0.00013069,2]
[330866041,1719885038443,-895.93,0.00013105,2]
[330866042,1719885038454,-153.12,0.00013107,2]
[330866043,1719885038463,-155.0,0.00013128,2]
[330866044,1719885038473,-3118.96045845,0.00013128,2]
[330866045,1719885038486,-661.6047841,0.00013128,2]
[330866046,1719885038495,-155.32104857,0.00013128,2]
[330866047,1719885038505,-156.3646415,0.00013128,2]
[330866048,1719885038514,-1265.72331532,0.00013128,2]
[330866049,1719885038524,-1074.25389935,0.00013128,2]
[330866050,1719885038533,-1289.70251898,0.00013128,2]
[330866051,1719885038542,-155.20542885,0.00013128,2]
[330866052,1719885038552,-155.30592588,0.00013128,2]
[330866053,1719885038562,-959.65007813,0.00013128,2]
[330866054,1719885038571,-757.13493585,0.00013128,2]
[330866055,1719885038580,-2383.36218704,0.00013128,2]
[330866056,1719885038589,-1138.39880609,0.00013128,2]
[330866057,1719885038598,-379.43771158,0.00013128,2]
[330866058,1719885038608,-159.66041281,0.00013128,2]
[330866059,1719885038617,-155.50886945,0.0001314,2]
[330866060,1719885038626,-267.22766308,0.0001314,2]
[330866061,1719885038635,-155.57265804,0.0001314,2]
[330866062,1719885038644,-153.12,0.00013145,2]
[330866063,1719885038654,-153.12,0.00013182,2]
[330866064,1719885038664,-499.99,0.00013182,2]
[330866065,1719885038673,-169.93,0.00013182,2]
[330866066,1719885038683,-467.64,0.00013219,2]
[330866067,1719885038692,-153.12,0.0001322,2]
[330866068,1719885038702,-10115.67,0.0001322,2]
[330866069,1719885038712,-153.12,0.00013258,2]
[330866070,1719885038722,-153.12,0.00013296,2]
[330866071,1719885038731,-153.12,0.00013333,2]
[330866072,1719885038742,-160.55280853,0.0001334,2]
[330866073,1719885038751,-153.12,0.00013371,2]
[330866074,1719885038761,-153.12,0.00013409,2]
[330866075,1719885038771,-153.12,0.00013447,2]
[330866076,1719885038780,-250.0,0.00013448,2]
[330866077,1719885038790,-153.12,0.00013484,2]
[330866078,1719885038799,-150.0,0.00013488,2]
[330866079,1719885038809,-153.12,0.00013522,2]
[330866080,1719885038818,-153.12,0.0001356,2]
[330866081,1719885038828,-153.12,0.00013597,2]
[330866082,1719885038837,-153.12,0.00013635,2]
[330866083,1719885038846,-153.12,0.00013673,2]
[330866084,1719885038856,-2751.0,0.00013699,2]
[330866085,1719885038866,-200.0,0.00013699,2]
[330866086,1719885038876,-882.72,0.00013699,2]
[330866087,1719885038886,-180.98,0.00013699,2]
[330866088,1719885038895,-153.12,0.00013711,2]
[330866089,1719885038905,-3073.51761569,0.00013736,2]
[330866090,1719885038915,-150.0,0.00013862,2]
[330866091,1719885038924,-160.55280853,0.00013876,2]
[330866092,1719885038933,-3904.03,0.00013881,2]
[330866093,1719885038943,-3904.03,0.00013885,2]
[330866094,1719885038952,-3904.03,0.00013888,2]
[330866095,1719885038962,-221.55,0.0001389,2]
[330866096,1719885038972,-3904.03,0.00013892,2]
[330866097,1719885038983,-3904.03,0.00013896,2]
[330866098,1719885038994,-3904.03,0.00013899,2]
[330866099,1719885039004,-1000.0,0.000139,2]
[330866100,1719885039014,-3904.03,0.00013903,2]
[330866101,1719885039025,-3904.03,0.00013907,2]
[330866102,1719885039037,-3904.03,0.0001391,2]
[330866103,1719885039047,-3904.03,0.00013914,2]
[330866104,1719885039058,-3904.03,0.00013918,2]
[330866105,1719885039069,-3904.03,0.00013921,2]
[330866106,1719885039079,-3904.03,0.00013925,2]
[330866107,1719885039090,-3904.03,0.00013929,2]
[330866108,1719885039100,-3904.03,0.00013932,2]
[330866109,1719885039111,-3904.03,0.00013936,2]
[330866110,1719885039122,-708.291,0.0001394,2]
[330866111,1719885039132,-3904.03,0.0001394,2]
[330866112,1719885039147,-3904.03,0.00013943,2]
[330866113,1719885039170,-3904.03,0.00013947,2]
[330866114,1719885039182,-3904.03,0.0001395,2]
[330866115,1719885039192,-961.03175437,0.00013976,2]
[330866116,1719885039203,-581.04303694,0.00013976,2]
[330866117,1719885039214,-172.52859407,0.00013976,2]
[330866118,1719885039224,-179.25311994,0.00013976,2]
[330866119,1719885039242,-170.64,0.00013979,3]
[330866120,1719885039253,-682.56,0.00013989,3]
[330866121,1719885039263,-341.28,0.00013989,3]
[330866122,1719885039274,-511.95,0.00013989,3]
[330866123,1719885039284,-186.91181794,0.0001399,2]
[330866124,1719885039295,-186.91181794,0.0001399,2]
[330866125,1719885039306,-367.47503766,0.0001399,2]
[330866126,1719885039317,-1101.55866263,0.00013999,5]
[330866127,1719885039327,-726.84107906,0.00013999,2]
[330866128,1719885039338,-300.0,0.00013999,2]
[330866129,1719885039348,-1855792.83806169,0.00014,2]
[330866130,1719885039359,-777.35886835,0.00014076,2]
[330866131,1719885039369,-222.60844696,0.00014076,2]
[330866132,1719885039379,-207.71,0.00014176,2]
[330866133,1719885039389,-150.0,0.00014237,2]
[330866134,1719885039399,-500.0,0.00014262,2]
[330866135,1719885039409,-500.86,0.00014558,2]
[330866136,1719885039419,-244.27,0.00014561,2]
[330866137,1719885039429,-150.0,0.00014612,2]
[330866138,1719885039440,-250.0,0.00014731,2]
[330866139,1719885039450,-961.03175427,0.00014742,2]
[330866140,1719885039460,-207.71,0.00014884,2]
[330866141,1719885039471,-581.04303693,0.00014912,2]
[330866142,1719885039482,-151.23492231,0.00014986,2]
[330866143,1719885039495,-2666.37893822,0.00014999,2]
[330866144,1719885039506,-300.0,0.00014999,2]
[330866145,1719885039516,-3977.74407505,0.00015,2]
[330866146,1719885039526,-5000.0,0.00015,2]
[330866147,1719885039536,-322574.92213402,0.00015,2]
[330866148,1719885039546,-1000.0,0.00015,2]
[330866149,1719885039557,-24689.93145836,0.00015,2]
[330866150,1719885039567,-150.06985074,0.00015017,2]
[330866151,1719885039578,-180.98,0.00015068,2]
[330866152,1719885039587,-500.0,0.00015102,2]
[330866153,1719885039598,-500.0,0.00015102,2]
[330866154,1719885039608,-500.0,0.00015102,2]
[330866155,1719885039618,-500.0,0.00015102,2]
[330866156,1719885039628,-341.28,0.00015349,3]
[330866157,1719885039638,-1365.12,0.00015359,3]
[330866158,1719885039648,-682.56,0.00015359,3]
[330866159,1719885039658,-895.93,0.00015369,2]
[330866160,1719885039668,-961.03175427,0.00015508,2]
[330866161,1719885039679,-207.71,0.00015593,2]
[330866162,1719885039690,-247.92,0.00015831,2]
[330866163,1719885039701,-581.04303693,0.00015848,2]
[330866164,1719885039712,-500.86,0.00016176,2]
[330866165,1719885039723,-244.27,0.00016178,2]
[330866166,1719885039734,-961.03175427,0.00016273,2]
[330866167,1719885039745,-4021.0,0.000163,5]
[330866168,1719885039755,-207.71,0.00016302,2]
[330866169,1719885039765,-180.98,0.00016438,2]
[330866170,1719885039775,-377.4375,0.000166,2]
[330866171,1719885039786,-540.82199359,0.00016746,2]
[330866172,1719885039796,-500.0,0.00016746,2]
[330866173,1719885039806,-500.0,0.00016746,2]
[330866174,1719885039816,-500.0,0.00016746,2]
[330866175,1719885039826,-581.04303693,0.00016784,2]
[330866176,1719885039836,-207.71,0.00017011,2]
[330866177,1719885039846,-961.03175427,0.00017039,2]
[330866178,1719885039856,-150.27345843,0.00017278,2]
[330866179,1719885039867,-150.12807248,0.00017278,2]
[330866180,1719885039877,-895.93,0.00017633,2]
[330866181,1719885039888,-581.04303693,0.0001772,2]
[330866182,1719885039899,-500.86,0.00017793,2]
[330866183,1719885039910,-244.27,0.00017796,2]
[330866184,1719885039921,-961.03175427,0.00017805,2]
[330866185,1719885039930,-500.0,0.00017842,2]
[330866186,1719885039941,-500.0,0.00017842,2]
[330866187,1719885039951,-500.0,0.00017842,2]
[330866188,1719885039961,-168.34,0.0001788,2]
[330866189,1719885039972,-1903.03082168,0.00018081,2]
[330866190,1719885039982,-151.19007493,0.00018556,2]
[330866191,1719885039999,-961.03175427,0.00018571,2]
[330866192,1719885040009,-581.04303693,0.00018656,2]
[330866193,1719885040019,-893.0,0.000188,2]
[330866194,1719885040030,-542.51,0.00018849,30]
[330866195,1719885040040,-151.19007493,0.0001888,2]
[330866196,1719885040050,-155.0,0.00018899,2]
[330866197,1719885040060,-187.22049655,0.00018899,2]
[330866198,1719885040072,-155.0,0.00018899,2]
[330866199,1719885040083,-155.20012335,0.00018899,2]
[330866200,1719885040093,-500.0,0.00018938,2]
[330866201,1719885040104,-193.49903413,0.00018938,2]
[330866202,1719885040115,-500.0,0.00018938,2]
[330866204,1719885040125,-316.92482572,0.00018999,2]
[330866205,1719885040136,-264.56470044,0.00018999,2]
[330866206,1719885040147,-32483.59930686,0.00019,2]
[330866207,1719885040160,-151.19007493,0.00019064,2]
[330866208,1719885040171,-721.20648713,0.00019069,2]
[330866209,1719885040182,-362.41946011,0.00019177,2]
[330866210,1719885040193,-279.56,0.00019178,2]
[330866211,1719885040204,-250.0,0.00019178,2]
[330866212,1719885040215,-882.72,0.00019178,2]
[330866213,1719885040225,-208.37368507,0.00019229,2]
[330866214,1719885040243,-12618.51721494,0.0001925,2]
[330866215,1719885040254,-759.50500552,0.00019252,2]
[330866216,1719885040264,-173.03401111,0.00019254,3]
[330866217,1719885040275,-961.03175427,0.00019337,2]
[330866218,1719885040285,-53009.1464,0.00019345,2]
[330866219,1719885040295,-255.56653683,0.0001935,2]
[330866220,1719885040306,-227.09542874,0.00019352,2]
[330866221,1719885040317,-10000.0,0.0001939,2]
[330866222,1719885040327,-500.86,0.00019411,2]
[330866223,1719885040338,-244.27,0.00019414,2]
[330866224,1719885040348,-600.0,0.00019533,2]
[330866225,1719885040359,-151.19007497,0.00019553,2]
[330866226,1719885040369,-581.04303693,0.00019592,2]
[330866227,1719885040379,-2500.0,0.000197,2]
[330866228,1719885040389,-895.93,0.00019896,2]
[330866229,1719885040400,-500.0,0.00019916,2]
[330866230,1719885040410,-150.0,0.00019999,2]
[330866231,1719885040420,-4281.23683244,0.0002,15]
[330866232,1719885040430,-257.21074985,0.0002,2]
[330866233,1719885040440,-449.05581836,0.0002,2]
[330866234,1719885040450,-624.34252821,0.0002,2]
[330866235,1719885040459,-155.56879945,0.0002,2]
[330866236,1719885040470,-1436.03748872,0.0002,2]
[330866237,1719885040480,-651.79187883,0.0002,2]
[330866238,1719885040491,-155.22029957,0.0002,3]
[330866239,1719885040502,-900.0,0.0002,2]
[330866240,1719885040512,-4138.90668308,0.0002,2]
[330866241,1719885040521,-7191.72557547,0.0002,2]
[330866242,1719885040531,-3071.0,0.0002,3]
[330866243,1719885040541,-3515.88,0.0002,2]
[330866244,1719885040551,-10000.0,0.00020017,2]
[330866245,1719885040560,-1719.16,0.00020017,2]
[330866246,1719885040570,-15556.38,0.00020017,2]
[330866247,1719885040580,-1500.0,0.00020017,5]
[330866248,1719885040589,-1235.98,0.00020017,2]
[330866249,1719885040599,-500.0,0.00020034,2]
[330866250,1719885040608,-500.0,0.00020034,2]
[330866251,1719885040618,-165.59222526,0.00020094,2]
[330866252,1719885040628,-961.03175427,0.00020103,2]
[330866253,1719885040639,-1827.38,0.0002052,2]
[330866254,1719885040649,-286.545,0.0002052,2]
[330866255,1719885040659,-357.792,0.0002052,2]
[330866256,1719885040668,-166.905,0.0002052,2]
[330866257,1719885040679,-444.004,0.0002052,2]
[330866258,1719885040688,-449.772,0.0002052,2]
[330866259,1719885040698,-620.597,0.0002052,2]
[330866260,1719885040707,-665.4,0.0002052,2]
[330866261,1719885040716,-1672.995,0.0002052,2]
[330866262,1719885040726,-1200.863,0.0002052,2]
[330866263,1719885040735,-5175.0,0.0002052,2]
[330866264,1719885040745,-38221.0,0.0002052,2]
[330866265,1719885040755,-314.209,0.0002052,2]
[330866266,1719885040764,-5808.0,0.0002052,2]
[330866267,1719885040774,-150.0,0.0002052,2]
[330866268,1719885040784,-1070.0,0.0002052,2]
[330866269,1719885040794,-581.04303693,0.00020528,2]
[330866270,1719885040804,-815.67,0.00020547,3]
[330866271,1719885040814,-797.58605,0.00020763,2]
[330866272,1719885040824,-1164.987142,0.00020763,2]
[330866273,1719885040834,-176.061881,0.00020763,2]
[330866274,1719885040844,-1411.895834,0.00020763,2]
[330866275,1719885040853,-178.446578,0.00020763,2]
[330866276,1719885040863,-196.227464,0.00020763,2]
[330866277,1719885040873,-499.14,0.00020821,2]
[330866278,1719885040882,-815.67,0.00020821,5]
[330866279,1719885040892,-12618.51721493,0.00020825,2]
[330866280,1719885040901,-759.5050055,0.00020826,2]
[330866281,1719885040911,-961.03175427,0.00020868,2]
[330866282,1719885040921,-186.91181794,0.0002089,2]
[330866283,1719885040931,-300.0,0.00020899,2]
[330866284,1719885040941,-302.27324941,0.00020899,2]
[330866285,1719885040951,-152.953719,0.000209,2]
[330866286,1719885040960,-152.528589,0.000209,2]
[330866287,1719885040970,-151.542244,0.000209,2]
[330866288,1719885040979,-152.046843,0.000209,2]
[330866289,1719885040989,-151.0,0.000209,2]
[330866290,1719885041001,-151.0,0.000209,2]
[330866291,1719885041012,-151.0,0.000209,2]
[330866292,1719885041022,-152.038252,0.000209,2]
[330866293,1719885041031,-151.0,0.000209,2]
[330866294,1719885041042,-151.0,0.000209,2]
[330866295,1719885041052,-265.320849,0.000209,2]
[330866296,1719885041061,-152.314491,0.000209,2]
[330866297,1719885041071,-151.0,0.000209,2]
[330866299,1719885041082,-151.0,0.000209,2]
[330866301,1719885041092,-151.0,0.000209,2]
[330866302,1719885041101,-151.0,0.000209,2]
[330866303,1719885041110,-151.0,0.000209,2]
[330866304,1719885041120,-153.779869,0.000209,2]
[330866305,1719885041129,-151.0,0.000209,2]
[330866306,1719885041142,-153.027128,0.000209,2]
[330866307,1719885041153,-151.0,0.000209,2]
[330866308,1719885041162,-151.0,0.000209,2]
[330866309,1719885041172,-151.0,0.000209,2]
[330866310,1719885041182,-151.0,0.000209,2]
[330866311,1719885041195,-260.689577,0.000209,2]
[330866312,1719885041204,-151.0,0.000209,2]
[330866313,1719885041213,-156.917384,0.000209,2]
[330866314,1719885041222,-151.0,0.000209,2]
[330866315,1719885041234,-159.202894,0.000209,2]
[330866316,1719885041248,-314571.89813,0.000209,2]
[330866317,1719885041258,-151.0,0.000209,2]
[330866318,1719885041269,-218.095566,0.000209,2]
[330866319,1719885041279,-151.0,0.000209,2]
[330866320,1719885041289,-151.0,0.000209,2]
[330866321,1719885041298,-151.0,0.000209,2]
[330866322,1719885041308,-151.0,0.000209,2]
[330866323,1719885041317,-206.62707,0.000209,2]
[330866324,1719885041327,-206.62707,0.000209,2]
[330866325,1719885041337,-206.62707,0.000209,2]
[330866326,1719885041346,-206.62707,0.000209,2]
[330866327,1719885041356,-151.0,0.000209,2]
[330866328,1719885041367,-151.0,0.000209,2]
[330866329,1719885041376,-151.0,0.000209,2]
[330866330,1719885041385,-151.0,0.000209,2]
[330866331,1719885041394,-355077.65221922,0.00021,7]
[330866332,1719885041404,-587.0,0.00021,2]
[330866333,1719885041413,-225.68521838,0.00021,2]
[330866334,1719885041422,-50000.0,0.00021,5]
[330866335,1719885041432,-50159.45,0.00021,5]
[330866336,1719885041442,-797.58605,0.00021022,2]
[330866337,1719885041452,-1164.987142,0.00021022,2]
[330866338,1719885041462,-1411.895834,0.00021022,2]
[330866339,1719885041471,-196.227464,0.00021022,2]
[330866340,1719885041481,-815.67,0.00021095,7]
[330866341,1719885041491,-500.0,0.0002113,2]
[330866342,1719885041501,-500.0,0.0002113,2]